Cogmind - Beta 16 @@@ ROGUE MODE // 2025.12.21 @ 01:23:29 Player: Xellophane Result: Self-destructed Performance ------------- Evolutions (2) 1000 Regions Visited (5) 1000 Robots Destroyed (28) 140 Value Destroyed (483) 483 Prototype IDs (23) 460 Alien Tech Used (0) 0 Bonus (300) 300 TOTAL SCORE: 3383 Bonus ------- Aligned with FarCom 300 Cogmind --------- Core Integrity 384/550 Matter 65/300 Energy 1592/1600 System Corruption 3% Temperature Cool (0) Movement Hovering (420) Ox6 Location -8/Materials Parts ------- > --- POWER (2) -------- (None) > --- PROPULSION (3) --- Airjet > --- UTILITY (4) ------ High-capacity Storage Unit Superbattery Advanced Visual Processing Unit Transport Network Coupler > --- WEAPON (2) ------- Assault Cannon Rocket Launcher > --- INVENTORY (20) --- Cesium-ion Thruster Improved Heat Sink Medium Storage Unit Weight Redist. System Weight Redist. System Experimental Sensor Array Improved Signal Interpreter Hacking Suite Improved Medium Laser Faulty Improved Medium Laser Pulse Rifle Particle Cannon Light Assault Rifle Improved Datajack Mining Laser Hammer Hammer Signal Generator Peak State ------------ > --- POWER ------------ Light Ion Engine > --- PROPULSION ------- Airjet Airjet Airjet > --- UTILITY ---------- High-capacity Storage Unit Superbattery Advanced Visual Processing Unit Transport Network Coupler > --- WEAPON ----------- Pulse Rifle Particle Cannon > --- INVENTORY -------- Cesium-ion Thruster Improved Heat Sink Medium Storage Unit Weight Redist. System Weight Redist. System Experimental Sensor Array Hacking Suite Improved Medium Laser Improved Medium Laser Light Assault Rifle Assault Cannon Rocket Launcher Mining Laser Hammer Hammer Signal Generator [Rating: 34] Favorites ----------- Power Light Ion Engine Engine Light Ion Engine Propulsion Light Treads Treads Light Treads Hover Unit Airjet Utility Advanced Visual Processing Unit Device Weight Redist. System Storage Medium Storage Unit Processor Advanced Visual Processing Unit Weapon Light Assault Rifle Energy Gun Pulse Rifle Energy Cannon Particle Cannon Ballistic Gun Light Assault Rifle Ballistic Cannon Assault Cannon Launcher Rocket Launcher Build | -11 -10 -10 -10 -9 -8 ------- Run | Yrd Mat Min Exi Min Mat Slots Evolved 4 | . . . . . 4 Power 1 | . . . . . 1 Propulsion 1 | . . . . . 1 Utility 2 | . . . . . 2 Weapon . | . . . . . . Parts Attached 21 | 6 2 1 . 2 10 Power 2 | 1 . . . 1 . Engine 2 | 1 . . . 1 . Core . | . . . . . . Reactor . | . . . . . . Propulsion 5 | 2 . . . . 3 Treads 2 | 2 . . . . . Leg . | . . . . . . Wheel . | . . . . . . Hover 3 | . . . . . 3 Flight . | . . . . . . Utility 7 | 1 2 1 . . 3 Device 1 | . 1 . . . . Storage 4 | 1 1 . . . 2 Processor 2 | . . 1 . . 1 Hackware . | . . . . . . Protection . | . . . . . . Artifact . | . . . . . . Weapon 7 | 2 . . . 1 4 Energy Gun 1 | . . . . . 1 Energy Cannon 1 | . . . . . 1 Ballistic Gun 3 | 2 . . . . 1 Ballistic Cannon 1 | . . . . 1 . Launcher 1 | . . . . . 1 Special Weapon . | . . . . . . Impact Weapon . | . . . . . . Slashing Weapon . | . . . . . . Piercing Weapon . | . . . . . . Special Melee Weapon . | . . . . . . Unidentified Prototypes . | . . . . . . Parts Lost 4 | . . . . 1 3 Power 1 | . . . . . 1 Propulsion 2 | . . . . . 2 Utility . | . . . . . . Weapon 1 | . . . . 1 . Highest Loss Streak 3 | . . . . 1 3 To Critical Strikes . | . . . . . . Average Backups 9 | 2 7 8 9 8 12 Power . | . 1 1 1 . . Propulsion . | 1 2 . . . . Utility 3 | . 1 2 3 3 4 Weapon 5 | . 3 4 5 4 7 Tool/Special . | . . . . . . Unused Backups 19 | . 4 2 1 . 12 Power . | . . . . . . Propulsion 6 | . 4 1 . . 1 Utility 6 | . . . 1 . 5 Weapon 6 | . . 1 . . 5 Tool/Special 1 | . . . . . 1 Average Slot Usage (%) 93 | . 97 100 100 100 82 Engine 12 | . 14 14 14 14 8 Treads 23 | . 28 28 28 28 13 Hover 2 | . . . . . 6 Device 5 | . 11 5 . . 6 Storage 13 | . 14 14 14 14 11 Processor 12 | . . 8 14 14 18 Ballistic Gun 19 | . 28 28 28 14 7 Ballistic Cannon 4 | . . . . 13 7 Peak Build Rating 34 | 6 9 10 11 14 34 Average Rating 13 | 5 8 9 10 12 21 On Entrance 8 | . 6 8 10 11 14 Avg Prop Armor Cover (%) 23 | 24 22 . . . . Naked Turns . | . . . . . . Heaviest Build 54 | 11 16 16 16 19 54 Greatest Support 46 | 3 46 46 40 40 46 Greatest Overweight (x) 3 | 3 3 . . . 2 Average Overweight (x) . | 2 . . . . 1 Largest Inventory Capacity 20 | 8 10 10 10 10 20 Average Capacity 12 | 7 9 10 10 10 19 Most Carried 20 | 4 10 10 10 10 20 Average Carried 10 | 2 7 9 9 9 13 Final Capacity 20 | 8 10 10 10 10 20 Final Carried 18 | 4 8 10 10 10 18 Class Distribution -------------------- 66% | Mutant 33% | Skirmisher Dominant Class ---------------- Mutant | -10/Materials Mutant | -10/Mines Mutant | -10/Exiles Mutant | -9/Mines Skirmisher | -8/Materials Resources | -11 -10 -10 -10 -9 -8 ----------- Run | Yrd Mat Min Exi Min Mat Matter Collected 615 | 166 158 127 . 36 128 Remotely . | . . . . . . Salvage Created 675 | . 214 85 . 43 333 Parts 53 | . 18 8 . 8 19 Haulers Intercepted 6 | . 2 . . . 4 Recyclers Shooed . | . . . . . . Parts Field Recycled . | . . . . . . Retrieved Matter . | . . . . . . Parts Self-Destructed . | . . . . . . Prevented . | . . . . . . Parts Restored . | . . . . . . Kills | -11 -10 -10 -10 -9 -8 ------- Run | Yrd Mat Min Exi Min Mat Combat Hostiles Destroyed 19 | . 5 6 . 3 5 Guns 12 | . 5 6 . . 1 Cannons 5 | . . . . 3 2 AOE 2 | . . . . . 2 Classes Destroyed 7 | . 4 . . . 3 Worker 1 | . . . . . 1 Hauler 6 | . 2 . . . 4 Watcher 2 | . 1 . . . 1 Swarmer 12 | . 3 6 . 3 . Grunt 4 | . 2 . . . 2 Duelist 1 | . . . . . 1 Sentry 2 | . . . . . 2 Best Kill Streak 4 | . 3 3 . 3 4 Combat Bots Only 3 | . 3 3 . 3 3 Max Kills in Single Turn 3 | . 1 2 . 1 3 Gunslinging . | . . . . . . Exploded 2 | . . . . . 2 Melee . | . . . . . . Uniques/NPCs Destroyed . | . . . . . . Combat | -11 -10 -10 -10 -9 -8 -------- Run | Yrd Mat Min Exi Min Mat Hostile Shots Fired 141 | . 44 20 . 23 54 Missed 41 | . 11 8 . 7 15 Hits 100 | . 33 12 . 16 39 Melee 5 | . . . . . 5 Projectile 95 | . 33 12 . 16 34 Critical Strikes 4 | . . . . . 4 Damage Taken 1232 | . 303 95 . 134 700 Core 268 | . 56 37 . 9 166 Absorbed by Shields . | . . . . . . Core Remaining (%) 79 | 100 . . . 59 . Volleys Fired 92 | . 32 9 . 7 44 Largest 2 | . 2 2 . 2 2 Hottest 131 | . 40 40 . 57 131 Shots Fired 180 | . 64 18 . 12 86 Gun 131 | . 64 18 . 8 41 Cannon 48 | . . . . 4 44 Launcher 1 | . . . . . 1 Special . | . . . . . . Kinetic 169 | . 64 18 . 12 75 Thermal 10 | . . . . . 10 Explosive 1 | . . . . . 1 Electromagnetic . | . . . . . . Robot Hit Streak 11 | . 11 3 . 4 9 Robot Miss Streak 4 | . 3 2 . 2 4 Penetration Max . | . . . . . . Secondary Targets 2 | . 2 . . . . Max Gunslinging Chain 1 | . 1 . . . . Shots Hit Robots 114 | . 45 8 . 6 55 Core Hits 45 | . 13 7 . 4 21 Critical Kills 1 | . . 1 . . . Critical Parts Destroyed 2 | . . . . 1 1 Critical Strikes 5 | . . 1 . 1 3 Destroy 3 | . . 1 . 1 1 Blast 2 | . . . . . 2 Melee Attacks . | . . . . . . Impact . | . . . . . . Slashing . | . . . . . . Piercing . | . . . . . . Sneak Attacks . | . . . . . . Combat Hostiles . | . . . . . . Follow-up Attacks . | . . . . . . Damage Inflicted 1865 | . 469 113 . 91 1192 Guns 876 | . 464 113 . 24 275 Cannons 762 | . . . . 67 695 Explosions 215 | . . . . . 215 Melee . | . . . . . . Ramming 12 | . 5 . . . 7 Kinetic 1529 | . 464 113 . 91 861 Thermal 109 | . . . . . 109 Explosive 215 | . . . . . 215 Electromagnetic . | . . . . . . Impact . | . . . . . . Slashing . | . . . . . . Piercing . | . . . . . . Highest Corruption 3 | . . . . . 3 Average Corruption 2 | . . . . . 2 Corruption Purged . | . . . . . . Corruption Blocked . | . . . . . . Effects 2 | . . . . . 2 Matter Fused 1 | . . . . . 1 Heat Flow Errors 1 | . . . . . 1 Overload Shots . | . . . . . . Overflow Damage 12 | . . . . . 12 Projectiles . | . . . . . . Explosions 12 | . . . . . 12 Melee . | . . . . . . Knockbacks 3 | . . . . . 3 Impact . | . . . . . . Kinetic 3 | . . . . . 3 Secondary . | . . . . . . Self-Inflicted Damage 37 | . . . . . 37 Shots 1 | . . . . . 1 Rammed 2 | . 1 . . . 1 Targets Rammed 2 | . 1 . . . 1 Kicked . | . . . . . . Crushed . | . . . . . . Highest Temperature 300 | . 12 . . 32 300 Average Temperature 65 | . 6 . . 17 76 Received Heat Transfer 336 | . 66 . . . 270 Siege Activations . | . . . . . . Martial Activations . | . . . . . . Shielding Activations . | . . . . . . Robots Disrupted . | . . . . . . Combat Hostiles . | . . . . . . Robots Corrupted . | . . . . . . Combat Hostiles . | . . . . . . Parts Fried . | . . . . . . Impact Corruptions . | . . . . . . Robots Melted . | . . . . . . Combat Hostiles . | . . . . . . Parts Melted . | . . . . . . Heat Transferred 222 | . . . . . 222 Parts Sabotaged . | . . . . . . Parts Stolen . | . . . . . . Parts Stripped . | . . . . . . Power Chain Reactions . | . . . . . . Alert | -11 -10 -10 -10 -9 -8 ------- Run | Yrd Mat Min Exi Min Mat Maximum Alert Level . | . . . . . . Low Security (%) 100 | 100 100 100 . 100 100 Level 1 . | . . . . . . Level 2 . | . . . . . . Level 3 . | . . . . . . Level 4 . | . . . . . . Level 5 . | . . . . . . High Security . | . . . . . . Max Security . | . . . . . . Peak Influence 100 | . 54 100 . 71 77 Initial 11 | . . 11 . . . Average 10 | . 13 20 . 8 4 Influence Increases 589 | . 160 140 . 71 218 Destroy 0b10 Robot/C 380 | . 100 120 . 60 100 Destroy 0b10 Robot/NC 45 | . 15 . . . 30 Destroy Leader 96 | . 26 20 . 10 40 Successful Hack 32 | . 19 . . . 13 Disable Machine 15 | . . . . . 15 Destroy Structure 21 | . . . . 1 20 Influence Decreases 518 | . 130 170 . 71 147 Entered New Map 19 | . . 19 . . . Time Decay 469 | . 130 151 . 71 117 Lost Part 30 | . . . . . 30 Squads Dispatched 2 | . 1 . . . 1 Investigation 2 | . 1 . . . 1 Extermination . | . . . . . . Reinforcement . | . . . . . . Assault . | . . . . . . Garrison . | . . . . . . Intercept . | . . . . . . Searches Triggered . | . . . . . . Construction Impeded . | . . . . . . Haulers Reinforced . | . . . . . . Active Scanning Responses . | . . . . . . Cargo Convoy Interrupts . | . . . . . . Stealth | -11 -10 -10 -10 -9 -8 --------- Run | Yrd Mat Min Exi Min Mat Distress Signals 4 | . 3 . . . 1 Communications Jammed . | . . . . . . Distress Signals . | . . . . . . Times Spotted 30 | . 12 6 . 3 9 Peak Tracking Total 6 | . 6 3 . 3 4 Tactical Retreats . | . . . . . . Traps | -11 -10 -10 -10 -9 -8 ------- Run | Yrd Mat Min Exi Min Mat Traps Triggered 3 | . 1 . . . 2 Indirectly . | . . . . . . Trap Hack Attempts . | . . . . . . Triggered . | . . . . . . Disarmed 1 | . . . . . 1 Reprogrammed . | . . . . . . Reused . | . . . . . . Traps Extracted . | . . . . . . Installed . | . . . . . . Triggered . | . . . . . . Most Traps Carried 2 | . . 2 1 1 . Machines | -11 -10 -10 -10 -9 -8 ---------- Run | Yrd Mat Min Exi Min Mat Machines Disabled 1 | . . . . . 1 Max in Single Turn 1 | . . . . . 1 Machines Repaired . | . . . . . . Machines Dismantled . | . . . . . . Machines Sabotaged . | . . . . . . Overloaded Fab Kills . | . . . . . . Hacking | -11 -10 -10 -10 -9 -8 --------- Run | Yrd Mat Min Exi Min Mat Machines Accessed 9 | . 3 1 2 . 3 Terminals 4 | . 2 . . . 2 Fabricators . | . . . . . . Repair Stations . | . . . . . . Recycling Units 2 | . 1 . . . 1 Scanalyzers . | . . . . . . Garrison Access . | . . . . . . Total Hacks 19 | . 6 1 2 . 10 Successful 12 | . 3 1 2 . 6 Failed 7 | . 3 . . . 4 Catastrophic . | . . . . . . Database Lockouts . | . . . . . . Manual 6 | . 1 . 3 . 2 Terminals 14 | . 5 . . . 9 Fabricators . | . . . . . . Repair Stations . | . . . . . . Recycling Units 2 | . 1 . . . 1 Scanalyzers . | . . . . . . Garrison Access . | . . . . . . Terminal Hacks 10 | . 2 1 2 . 5 Record 1 | . . . 1 . . Open Door 1 | . . 1 . . . Emergency Access Points 1 | . . . . . 1 Locate Traps 1 | . . . . . 1 Disarm Traps 1 | . . . . . 1 Patrol Status 1 | . . . . . 1 Transport Status 1 | . 1 . . . . Hauler Manifests 1 | . . . . . 1 Zone Layout 1 | . 1 . . . . Proto ID Catalog 1 | . . . 1 . . Fabricator Hacks . | . . . . . . Repair Station Hacks . | . . . . . . Recycling Unit Hacks 2 | . 1 . . . 1 Report Inventory 2 | . 1 . . . 1 Scanalyzer . | . . . . . . Garrison Access Hacks . | . . . . . . Unauthorized Hacks . | . . . . . . Terminals . | . . . . . . Fabricators . | . . . . . . Repair Stations . | . . . . . . Recycling Units . | . . . . . . Scanalyzers . | . . . . . . Garrison Access . | . . . . . . Data Cores Recovered . | . . . . . . Used . | . . . . . . Hacking Detections 4 | . 2 . . . 2 Full Trace Events 2 | . 1 . . . 1 Feedback Events . | . . . . . . Feedback Blocked . | . . . . . . Robot Schematics Acquired . | . . . . . . Robots Built . | . . . . . . Authchips . | . . . . . . Time . | . . . . . . Total Robot Build Rating . | . . . . . . Part Schematics Acquired . | . . . . . . Parts Built . | . . . . . . Authchips . | . . . . . . Time . | . . . . . . Total Part Build Rating . | . . . . . . Part Studies Acquired . | . . . . . . Parts Repaired . | . . . . . . Time . | . . . . . . Parts Recycled . | . . . . . . Recycled Matter . | . . . . . . Retrieved Matter . | . . . . . . Retrieved Components . | . . . . . . Parts Scanalyzed . | . . . . . . Part Schematics Acquired . | . . . . . . Parts Damaged . | . . . . . . Bothacking | -11 -10 -10 -10 -9 -8 ------------ Run | Yrd Mat Min Exi Min Mat Used RIF Installer . | . . . . . . Robots Hacked . | . . . . . . Non-combat . | . . . . . . Combat . | . . . . . . Robot Hacks Applied . | . . . . . . Relay Couplers Released . | . . . . . . Fabnet Peak Effective % . | . . . . . . Robots Rewired . | . . . . . . Allies Hacked . | . . . . . . Hacks Repelled . | . . . . . . Allies | -11 -10 -10 -10 -9 -8 -------- Run | Yrd Mat Min Exi Min Mat Total Allies . | . . . . . . Largest Group . | . . . . . . Highest-Rated Group . | . . . . . . Highest-Rated Ally . | . . . . . . Total Orders . | . . . . . . Ally Attacks . | . . . . . . Total Damage . | . . . . . . Kills . | . . . . . . Allies Corrupted . | . . . . . . Allies Melted . | . . . . . . Intel | -11 -10 -10 -10 -9 -8 ------- Run | Yrd Mat Min Exi Min Mat Active Infowar (turns) 2696 | . . 410 551 555 1180 Optics 2696 | . . 410 551 555 1180 T.N.C. 1178 | . . . . . 1178 Robot Analysis Total . | . . . . . . Derelict Logs Recovered 1 | . . 1 . . . Drone Launches . | . . . . . . Drone Recoveries . | . . . . . . Exploration | -11 -10 -10 -10 -9 -8 ------------- Run | Yrd Mat Min Exi Min Mat Turns Passed 3602 | 78 553 685 551 555 1180 Spaces Moved 1706 | 37 261 406 343 326 333 Core 63 | 37 26 . . . . Treads 1540 | . 235 406 343 326 230 Legs . | . . . . . . Wheels . | . . . . . . Hover 103 | . . . . . 103 Flight . | . . . . . . Fastest Speed 50 | 50 160 160 160 160 160 Average Speed 170 | 181 163 160 160 160 210 Slowest Speed 240 | 200 200 160 160 160 240 Overloaded Moves . | . . . . . . Propulsion Burnouts . | . . . . . . Robots Hopped . | . . . . . . Potential Cave-ins . | . . . . . . Cave-ins Triggered . | . . . . . . Exploration Rate (%) 49 | 3 39 75 73 77 30 Regions Visited 5 Branch Regions 3 Pre-discovered Areas . | . . . . . . Known Exits Taken . | . . . . . . Unknown Exits Taken 5 | 1 1 1 1 1 . Scrap Searched 1 | . . 1 . . . Spaces Dug . | . . . . . . Terrain Destroyed 20 | . . . . 1 19 Melee . | . . . . . . Projectile 9 | . . . . 1 8 AOE 11 | . . . . . 11 Terrain Rammed . | . . . . . . Walls Destroyed . | . . . . . . Machines Disabled . | . . . . . . Actions | -11 -10 -10 -10 -9 -8 --------- Run | Yrd Mat Min Exi Min Mat Total 2232 | 46 329 429 346 349 733 Wait 363 | . 23 6 . 10 324 Move 1701 | 36 260 405 342 325 333 Hop . | . . . . . . Pick Up 33 | 4 7 4 2 3 13 Fast Attach 8 | 6 1 1 . . . Attach 9 | . . . . 1 8 Detach 4 | . . 1 . . 3 Swap 6 | . 1 . . 1 4 Drop 14 | . 4 3 2 2 3 Fire 92 | . 32 9 . 7 44 Melee . | . . . . . . Ram 1 | . . . . . 1 Kick . | . . . . . . Crush 1 | . 1 . . . . Escape Stasis . | . . . . . . Rewire . | . . . . . . Trap . | . . . . . . Miscellaneous . | . . . . . . Route ------- -11/Scrapyard -10/Materials (discovered 3 exits: [*Mat] / *Min / [*Sub]) -10/Mines (discovered 2 exits: [*Mat] / *Exi) -10/Exiles (discovered 2 exits: [*Min x2]) -9/Mines (discovered 2 exits: *Mat x2) -8/Materials History --------- Turn | Location | Event 5 | -11/Scrapyard | Discovered new exit (range 16) 79 | -11/Scrapyard | Entered Materials 318 | -10/Materials | Build established: Mutant 403 | -10/Materials | Discovered new exit (range 11) 519 | -10/Materials | Discovered new exit (range 7) 604 | -10/Materials | Discovered new exit (range 10) 632 | -10/Materials | Entered Mines 757 | -10/Mines | Found a hidden stash of uninstalled traps 778 | -10/Mines | Discovered new exit (range 7) 896 | -10/Mines | Met a Derelict who couldn't figure out how to use a Trap Extractor 1308 | -10/Mines | Deemed a non-threat by the Exiles lab entrance 1309 | -10/Mines | Discovered new exit (range 5) 1317 | -10/Mines | Entered Exiles 1341 | -10/Exiles | Discovered new exit (range 15) 1361 | -10/Exiles | Met 8R-AWN 1388 | -10/Exiles | Met EX-HEX 1481 | -10/Exiles | Met EX-DEC 1573 | -10/Exiles | Met EX-BIN 1596 | -10/Exiles | Aligned with FarCom system 1597 | -10/Exiles | Given EX-Vault access code 1673 | -10/Exiles | Opened EX-Vault 1678 | -10/Exiles | Found Prototype Device 1695 | -10/Exiles | Identified Trap Reconfigurator 1699 | -10/Exiles | Found Superbattery 1732 | -10/Exiles | Warned to stay clear of 0b10 Research branches 1852 | -10/Exiles | Discovered new exit (range 12) 1868 | -10/Exiles | Left Exiles lab with Superbattery 1868 | -10/Exiles | Entered Mines 2065 | -9/Mines | Discovered new exit (range 19) 2148 | -9/Mines | Received a Rocket Launcher from a helpful Derelict 2379 | -9/Mines | Found a damaged Exp. Sensor Array with a note attached 2382 | -9/Mines | Found Prototype Device 2396 | -9/Mines | Discovered new exit (range 4) 2403 | -9/Mines | Met a Derelict testing a Signal Generator 2409 | -9/Mines | Found Signal Generator 2423 | -9/Mines | Entered Materials 2423 | -8/Materials | Evolved 4 slots: Power x1, Propulsion x1, Utility x2 2712 | -8/Materials | Build established: Skirmisher 3603 | -8/Materials | Self-destructed Last Messages --------------- 03559_ Y-45 Defender Lgt. Armor Plating blasted off. 03562_ Lgt. Ion Engine destroyed. 03570_ L-31 Rogue knocked back. 03573_ Acquired 41 matter. 03575_ System corrupted: Matter fused (-8). 03580_ M-13 Machinist repairs K-01 Serf Med. Matter Pod. 03586_ L-31 Rogue knocked back. 03588_ Airjet destroyed. 03590_ Critical hit (Burn: +37). 03592_ M-13 Machinist fits Backup Plating I on K-01 Serf. 03596_ K-01 Serf destroyed. 03596_ Destroyed Melee Analysis Suite. 03596_ L-31 Rogue destroyed. 03596_ G-47 Trooper destroyed. 03596_ Airjet destroyed. 03596_ Destroyed Airjet. 03596_ G-47 Trooper knocked back. 03598_ K-01 Serf collects debris. 03601_ G-47 Trooper destroyed. 03601_ K-01 Serf collects debris. Map ----- +----------------------------------------------------+ | ?????????????????????????????????????????????????? | | ?????????????????????????????????????????????????? | | ?????????????????????????????????????????????????? | | ?????????????????????????????????????????????????? | | ?????????????????????????????????????????????????? | | ?????????????????????????????????????????????????? | | ????????????????????##???????????????????????????? | | ????????????????????? ???????????????????????????? | | ????????????????????? ???????????????????????????? | | ????????????????????? ???????????????????????????? | | ????????????????????? ???????????????????????????? | | ????????????????????? ???????????????????????????? | | ????????????????????? ###?????????????????#??????? | | ?????????????????????? +???????????????? #??????? | | ?????????????????????? #????????########+#??????? | | ?????????????????????? #????????# #??????? | | ?????????????????????? #????????# #??????? | | ?????????????????????? +????????# #??????? | | ?????????????????????? #????????#! """#??????? | | ??????????????????????# #????????# """#??????? | | ??????????????????????# #????????# """#??????? | | ???????????????a?###### #????????# """#??????? | | ?????????????????# # ###??????# """#??????? | | ?????????????????# # #??????# #??????? | | ?????????????????# =! ##########+#########???? | | ?????????????????# %*@ t #???? | | ?????????????????# [ *% k^ u m ##### | | ?????????????????# %[% %^ % # | | ???????????????Y?# %% ###### k #""" | | ?????????????????#% ### ##?#??# k #""" | | ????????????????#; #?###?????######## #""" | | ????????????????##;+###????##########??# # | | ???????????????? #*??????? ! ?# #""" | | ??????????????? #%?????????? # #""" | | ?????????????? ?+ ?????????"" =]! # #""" | | ????????????? ?# ?????????"" ]]! + + | | ????????????# ??#??????????"" ]! # ##### | | ????????????###+???????????????????????# # | | ??????????????????????????##############% # """ | | ??????????????????????????# # # """ | | ??????????????????????????#== # # """ | | ??????????????????????????# [ # # % | | ??????????????????????????# / % + | | ??????????????????????????# # # | | ??????????????????????????############## # | | ?????????????????????????????# ## ##### | | ?????????????????????????????# # % #??? | | ?????????????????????????????# # %] #### | | ?????????????????????????????# # | | ?????????????????????????????# + | +----------------------------------------------------+ Best States ------------- Heat Dissipation 31 Energy Generation 10 Energy Capacity 1625 Matter Stores 300 Matter Capacity 300 Sight Range 20 Terrain Scan Density 10 Additional Mass Support 6 Evasion (%) 40 Recoil Reduction 2 Item Schematics ----------------- None Robot Schematics ------------------ None Fabricated ------------ Nothing Repaired ---------- Nothing Studied --------- None Alien Tech Used ----------------- None Achievements -------------- Sixth Sense Spot Them First Challenges ------------ None Game ------ Seed SuperchargedTeslaMatterbank Manual? 0 Play Time 00:32:45 Cumulative 19.0 hours Start 2025.12.21 @ 00:50:34 End 2025.12.21 @ 01:23:29 Sessions 1 Manual Loads 0 Difficulty Rogue Special Mode None Game No. 29 Rogue 29 Adventurer 0 Explorer 0 Win Type - Total 0 Types 0/0/0/0/0/0/0/0/0/0 Lore% 7 Gallery% 10 Achievement% 10 Wizard Run 0 Options --------- Layout 0 ASCII 0 Keyboard 1 Movement Numpad Keybinds 0 Fullscreen 2 Font 18/SmallcapsGlow Map View 76x50 Zoom Use 0% Tactical HUD 1 Map Filters NONE Filters NONE Steam 1 RUN: e8f99f57-7c8d-4fb0-be67-c81fc6bc9a5e